Cogmind - Beta 15 @@@ ROGUE MODE // 2025.05.16 @ 08:54:45 // Winter2019/RPGLIKE Player: Bulbasornado Result: Destroyed by D-53 Grenadier with Mini Grenade Launcher Performance ------------- Evolutions (0) 0 Regions Visited (0) 0 Robots Destroyed (2) 10 Value Destroyed (60) 60 Prototype IDs (0) 0 Alien Tech Used (0) 0 Bonus (0) 0 TOTAL SCORE: 70 Bonus ------- None Cogmind --------- Core Integrity 0/600 Matter 279/300 Energy 248/250 System Corruption 0% Temperature Cool (18) Movement Treading (160) Location -11/Scrapyard Parts ------- > --- POWER (1) -------- Ion Engine > --- PROPULSION (2) --- Light Treads Light Treads > --- UTILITY (1) ------ Seismic Detector > --- WEAPON (3) ------- Small Laser Light Assault Rifle Light Assault Rifle > --- INVENTORY (0) ---- (None) Peak State ------------ > --- POWER ------------ Ion Engine > --- PROPULSION ------- Light Treads Light Treads > --- UTILITY ---------- Seismic Detector > --- WEAPON ----------- Small Laser Light Assault Rifle Light Assault Rifle > --- INVENTORY -------- (None) [Rating: 7] Favorites ----------- Power Ion Engine Engine Ion Engine Propulsion Light Treads Treads Light Treads Utility Seismic Detector Device Seismic Detector Weapon Light Assault Rifle Energy Gun Small Laser Ballistic Gun Light Assault Rifle Build | -11 ------- Run | Yrd Slots Evolved 3 | 3 Power . | . Propulsion 1 | 1 Utility . | . Weapon 2 | 2 Parts Attached 7 | 7 Power 1 | 1 Engine 1 | 1 Core . | . Reactor . | . Propulsion 2 | 2 Treads 2 | 2 Leg . | . Wheel . | . Hover . | . Flight . | . Utility 1 | 1 Device 1 | 1 Storage . | . Processor . | . Hackware . | . Protection . | . Artifact . | . Weapon 3 | 3 Energy Gun 1 | 1 Energy Cannon . | . Ballistic Gun 2 | 2 Ballistic Cannon . | . Launcher . | . Special Weapon . | . Impact Weapon . | . Slashing Weapon . | . Piercing Weapon . | . Special Melee Weapon . | . Unidentified Prototypes . | . Parts Lost . | . Power . | . Propulsion . | . Utility . | . Weapon . | . Highest Loss Streak . | . To Critical Strikes . | . Average Backups . | . Power . | . Propulsion . | . Utility . | . Weapon . | . Tool/Special . | . Unused Backups . | . Power . | . Propulsion . | . Utility . | . Weapon . | . Tool/Special . | . Average Slot Usage (%) . | . Peak Build Rating 7 | 7 Average Rating 6 | 6 On Entrance . | . Naked Turns . | . Heaviest Build 9 | 9 Greatest Support 3 | 3 Greatest Overweight (x) 2 | 2 Average Overweight (x) 1 | 1 Largest Inventory Capacity . | . Average Capacity . | . Most Carried . | . Average Carried . | . Final Capacity . | . Final Carried . | . Class Distribution -------------------- None Dominant Class ---------------- None Resources | -11 ----------- Run | Yrd Matter Collected 276 | 276 Remotely . | . Salvage Created 98 | 98 Parts 6 | 6 Haulers Intercepted . | . Recyclers Shooed . | . Parts Field Recycled . | . Retrieved Matter . | . Parts Self-Destructed . | . Prevented . | . Kills | -11 ------- Run | Yrd Combat Hostiles Destroyed 1 | 1 Guns 1 | 1 Classes Destroyed 2 | 2 Tunneler 1 | 1 Demolisher 1 | 1 Best Kill Streak 1 | 1 Combat Bots Only 1 | 1 Max Kills in Single Turn 1 | 1 Gunslinging . | . Exploded . | . Melee . | . Uniques/NPCs Destroyed . | . Combat | -11 -------- Run | Yrd Hostile Shots Fired 19 | 19 Missed 1 | 1 Hits 18 | 18 Projectile 18 | 18 AOE 19 | 19 Damage Taken 729 | 729 Core 615 | 615 Absorbed by Shields . | . Redirected to Core 402 | 402 Core Remaining (%) . | . Volleys Fired 14 | 14 Largest 3 | 3 Hottest 80 | 80 Shots Fired 40 | 40 Gun 40 | 40 Cannon . | . Launcher . | . Special . | . Kinetic 27 | 27 Thermal 13 | 13 Explosive . | . Electromagnetic . | . Robot Hit Streak 17 | 17 Robot Miss Streak 2 | 2 Penetration Max . | . Secondary Targets 1 | 1 Max Gunslinging Chain 1 | 1 Shots Hit Robots 30 | 30 Core Hits 10 | 10 Critical Kills . | . Critical Parts Destroyed . | . Critical Strikes . | . Melee Attacks . | . Impact . | . Slashing . | . Piercing . | . Sneak Attacks . | . Combat Hostiles . | . Follow-up Attacks . | . Damage Inflicted 266 | 266 Guns 266 | 266 Cannons . | . Explosions . | . Melee . | . Ramming . | . Kinetic 172 | 172 Thermal 94 | 94 Explosive . | . Electromagnetic . | . Impact . | . Slashing . | . Piercing . | . Highest Corruption . | . Average Corruption . | . Corruption Purged . | . Corruption Blocked . | . Overload Shots . | . Overflow Damage . | . Projectiles . | . Explosions . | . Melee . | . Knockbacks . | . Impact . | . Kinetic . | . Secondary . | . Self-Inflicted Damage . | . Shots . | . Rammed . | . Targets Rammed . | . Kicked . | . Crushed . | . Highest Temperature 36 | 36 Average Temperature 15 | 15 Received Heat Transfer . | . Siege Activations . | . Martial Activations . | . Shielding Activations . | . Robots Disrupted . | . Combat Hostiles . | . Robots Corrupted . | . Combat Hostiles . | . Parts Fried . | . Impact Corruptions . | . Robots Melted . | . Combat Hostiles . | . Parts Melted . | . Heat Transferred 225 | 225 Parts Sabotaged . | . Parts Stolen . | . Parts Stripped . | . Power Chain Reactions . | . Alert | -11 ------- Run | Yrd Maximum Alert Level . | . Low Security (%) 100 | 100 Level 1 . | . Level 2 . | . Level 3 . | . Level 4 . | . Level 5 . | . High Security . | . Max Security . | . Peak Influence 30 | 30 Initial . | . Average . | . Influence Increases 35 | 35 Destroy 0b10 Robot/C 20 | 20 Destroy 0b10 Robot/NC 5 | 5 Destroy Leader 10 | 10 Influence Decreases 8 | 8 Time Decay 8 | 8 Squads Dispatched . | . Investigation . | . Extermination . | . Reinforcement . | . Assault . | . Garrison . | . Intercept . | . Searches Triggered . | . Construction Impeded . | . Haulers Reinforced . | . Active Scanning Responses . | . Cargo Convoy Interrupts . | . Stealth | -11 --------- Run | Yrd Distress Signals . | . Communications Jammed . | . Distress Signals . | . Times Spotted 2 | 2 Peak Tracking Total 2 | 2 Tactical Retreats . | . Traps | -11 ------- Run | Yrd Traps Triggered . | . Indirectly . | . Trap Hack Attempts . | . Triggered . | . Disarmed . | . Reprogrammed . | . Reused . | . Traps Extracted . | . Installed . | . Triggered . | . Machines | -11 ---------- Run | Yrd Machines Disabled . | . Max in Single Turn . | . Machines Repaired . | . Machines Dismantled . | . Machines Sabotaged . | . Overloaded Fab Kills . | . Hacking | -11 --------- Run | Yrd Machines Accessed . | . Terminals . | . Fabricators . | . Repair Stations . | . Recycling Units . | . Scanalyzers . | . Garrison Access . | . Total Hacks . | . Successful . | . Failed . | . Catastrophic . | . Database Lockouts . | . Manual . | . Terminals . | . Fabricators . | . Repair Stations . | . Recycling Units . | . Scanalyzers . | . Garrison Access . | . Terminal Hacks . | . Fabricator Hacks . | . Repair Station Hacks . | . Recycling Unit Hacks . | . Scanalyzer . | . Garrison Access Hacks . | . Unauthorized Hacks . | . Terminals . | . Fabricators . | . Repair Stations . | . Recycling Units . | . Scanalyzers . | . Garrison Access . | . Data Cores Recovered . | . Used . | . Hacking Detections . | . Full Trace Events . | . Feedback Events . | . Feedback Blocked . | . Robot Schematics Acquired . | . Robots Built . | . Authchips . | . Time . | . Total Robot Build Rating . | . Part Schematics Acquired . | . Parts Built . | . Authchips . | . Time . | . Total Part Build Rating . | . Parts Repaired . | . Time . | . Parts Recycled . | . Recycled Matter . | . Retrieved Matter . | . Retrieved Components . | . Parts Scanalyzed . | . Part Schematics Acquired . | . Parts Damaged . | . Bothacking | -11 ------------ Run | Yrd Used RIF Installer . | . Robots Hacked . | . Non-combat . | . Combat . | . Robot Hacks Applied . | . Relay Couplers Released . | . Fabnet Peak Effective % . | . Robots Rewired . | . Allies Hacked . | . Hacks Repelled . | . Allies | -11 -------- Run | Yrd Total Allies . | . Largest Group . | . Highest-Rated Group . | . Highest-Rated Ally . | . Total Orders . | . Ally Attacks . | . Total Damage . | . Kills . | . Allies Corrupted . | . Allies Melted . | . Intel | -11 ------- Run | Yrd Active Infowar (turns) 1648 | 1648 Seismic 1648 | 1648 Robot Analysis Total . | . Derelict Logs Recovered . | . Drone Launches . | . Drone Recoveries . | . Exploration | -11 ------------- Run | Yrd Turns Passed 1687 | 1687 Spaces Moved 48 | 48 Core 48 | 48 Treads . | . Legs . | . Wheels . | . Hover . | . Flight . | . Fastest Speed 50 | 50 Average Speed 106 | 106 Slowest Speed 150 | 150 Overloaded Moves . | . Propulsion Burnouts . | . Robots Hopped . | . Potential Cave-ins . | . Cave-ins Triggered . | . Exploration Rate (%) 9 | 9 Regions Visited . Branch Regions . Pre-discovered Areas . | . Known Exits Taken . | . Unknown Exits Taken . | . Scrap Searched . | . Spaces Dug . | . Terrain Destroyed . | . Melee . | . Projectile . | . AOE . | . Terrain Rammed . | . Walls Destroyed . | . Machines Disabled . | . Actions | -11 --------- Run | Yrd Total 1656 | 1656 Wait 1587 | 1587 Move 48 | 48 Hop . | . Pick Up . | . Fast Attach 7 | 7 Attach . | . Detach . | . Swap . | . Drop . | . Fire 14 | 14 Melee . | . Ram . | . Kick . | . Crush . | . Escape Stasis . | . Rewire . | . Trap . | . Miscellaneous . | . Route ------- -11/Scrapyard (discovered 1 exit: [*Mat]) History --------- Turn | Location | Event 6 | -11/Scrapyard | Upgraded with Propulsion slot (x1) 10 | -11/Scrapyard | Discovered new exit (range 16) 10 | -11/Scrapyard | Upgraded with Weapon slot (x1) 10 | -11/Scrapyard | Upgraded with Weapon slot (x1) 1659 | -11/Scrapyard | Assembled infested the area 1674 | -11/Scrapyard | Core integrity fell below 50% 1680 | -11/Scrapyard | Core integrity fell below 20% 1688 | -11/Scrapyard | Destroyed by D-53 Grenadier with Mini Grenade Launcher Last Messages --------------- 00146_ K-01 Serf collects debris. 00149_ T-07 Excavator is excavating. 00151_ K-01 Serf collects debris. 00153_ T-07 Excavator is excavating. 00192_ K-01 Serf collects debris. 00367_ T-07 Excavator is excavating. 00524_ K-01 Serf collects debris. 00763_ T-07 Excavator is excavating. 01157_ K-01 Serf collects debris. 01659_ ALERT: Infestation in the scrapyard, dispatching Demolisher response squad. 01659_ C-30 ARC bursts open, deploying its payload. 01659_ D-53 Grenadier unfolds itself. 01661_ T-07 Excavator destroyed. 01663_ K-01 Serf destroyed. 01667_ The unstable cave ceiling collapses. 01675_ D-53 Grenadier destroyed. 01675_ Switching to secondary target: D-53 Grenadier. 01678_ The unstable cave ceiling collapses. 01679_ R-06 Scavenger destroyed. 01684_ The unstable cave ceiling collapses. Map ----- +----------------------------------------------------+ | ?????????????????????????????????????????????????? | | ?????????????????????????????????????????????????? | | ?????????????????????????????????????????????????? | | ?????????????????????????????????????????????????? | | ?????????????????????????????????????????????????? | | ?????????????????????????????????????????????????? | | ?????????????????????????????????????????????????? | | ?????????????????????????????????????????????????? | | ?????????????????????????????????????????????????? | | ?????????????????????????????????????????????????? | | ?????????????????????????????????????????????????? | | ?????????????????????????????????????????????????? | | ?????????????????????????????????????????????????? | | ????????????????????????????###??????????????????? | | ???????????????????????????? ???????????????????? | | ???????????????????????????? ???????????????????? | | ?????????????##????######### #####???????????????? | | ?????????????# #???# #???????????????? | | ?????????????# ???# #???????????????? | | ?????????????# ???# #???????????????? | | ??????????#### #### #???????????????? | | #######???# # #???????????????? | | * = #???# # ?????????????????? | | #???# = ## #??????????????????? | | ##### %! ####???????????????? | | = d @ #????????????? | | = % % ## #????????????? | | ##### < ## #????????????? | | !#???# ### # #????????????? | | #???##########?## #????????????? | | #######???????????????## # #????????????? | | ???????????????????????# # #????????????? | | ???????????????????????# #????????????? | | ???????????????????????# ###########????????????? | | ???????????????????????# ???????????????????????? | | ???????????????????????# ???????????????????????? | | ??????????????????????? ???????????????????????? | | ???????????????????????# ???????????????????????? | | ???????????????????????? ???????????????????????? | | ???????????????????????? ???????????????????????? | | ???????????????????????? ???????????????????????? | | ?????????????????????????????????????????????????? | | ?????????????????????????????????????????????????? | | ?????????????????????????????????????????????????? | | ?????????????????????????????????????????????????? | | ?????????????????????????????????????????????????? | | ?????????????????????????????????????????????????? | | ?????????????????????????????????????????????????? | | ?????????????????????????????????????????????????? | | ?????????????????????????????????????????????????? | +----------------------------------------------------+ Best States ------------- Heat Dissipation 31 Energy Generation 10 Energy Capacity 250 Matter Stores 300 Matter Capacity 300 Sight Range 16 Terrain Scan Density 10 Evasion (%) 50 Recoil Reduction 2 Item Schematics ----------------- None Robot Schematics ------------------ None Fabricated ------------ Nothing Repaired ---------- Nothing Alien Tech Used ----------------- None Achievements -------------- None Challenges ------------ None RPGLIKE | -11 --------- Run | Yrd Levels Raised . | . XP Earned 3150 | 3150 XP Spent 2750 | 2750 Upgrades 6 | 6 Propulsion Slot 1 | 1 Weapon Slot 2 | 2 Heat Dissipation 1 | 1 Ranged Accuracy 2 | 2 Protomatter Created . | . Protomatter Decayed . | . Game ------ Seed StealthHybridBooster Manual? 0 Play Time 00:07:20 Cumulative 365.0 hours Start 2025.05.16 @ 08:50:41 End 2025.05.16 @ 08:54:45 Sessions 0 Manual Loads 0 Difficulty Rogue Special Mode Winter2019/RPGLIKE Game No. 104 Rogue 80 Adventurer 24 Explorer 0 Win Type - Total 13 Types 8/0/4/1/0/0/0/0/0/0 Lore% 69 Gallery% 81 Achievement% 74 Wizard Run 0 Options --------- Layout 0 ASCII 0 Keyboard 1 Movement Vi Keybinds 0 Fullscreen 2 Font 16/Tamsyn Map View 89x57 Zoom Use 0% Tactical HUD 1 Map Filters NONE Filters NONE Steam 1 RUN: e1c09b9b-88eb-4af4-9f30-519c678c96d0